lending/lending_fUSD_20250425
["ID","MTS","AMOUNT","RATE_DAILY","PERIOD"]
[358905353,1745539466314,250.0,0.00017,2]
[358905354,1745539467501,223.36317095,0.00019,2]
[358905355,1745539467524,76.63682905,0.00019,2]
[358905361,1745539601461,1998.1998,0.00037808,60]
[358905364,1745539831929,-422.398216,0.000199,2]
[358905365,1745539831940,-1000.0,0.000199,2]
[358905366,1745539831950,-350.0,0.00021,2]
[358905367,1745539831959,-202.42372531,0.000214,2]
[358905368,1745539831969,-277.12,0.000215,2]
[358905369,1745539831979,-250.0,0.0002189,2]
[358905370,1745539831988,-400.0,0.00023,2]
[358905371,1745539831998,-298.15611043,0.00026622,2]
[358905378,1745539832127,-2380.21952971,0.00026622,2]
[358905380,1745539832136,-857.98047029,0.000279,7]
[358905385,1745539832177,-796.84093164,0.000279,7]
[358905387,1745539832187,-900.0,0.00028727,2]
[358905389,1745539832198,-300.0,0.00028727,2]
[358905391,1745539832207,-796.08720621,0.00028728,8]
[358905393,1745539832219,-858.7341957,0.00028728,8]
[358905395,1745539832229,-1654.82140191,0.00029555,8]
[358905397,1745539832238,-1654.82140191,0.00030383,9]
[358905399,1745539832248,-876.0,0.00030396,2]
[358905401,1745539832257,-796.0,0.00030496,2]
[358905403,1745539832268,-1654.82140191,0.0003121,9]
[358905405,1745539832278,-478.57,0.00032,2]
[358905408,1745539832289,-1654.82140191,0.00032038,10]
[358905411,1745539832298,-831.36,0.000324,7]
[358905414,1745539832307,-1654.82140191,0.00032866,10]
[358905417,1745539832317,-478.57,0.00033,2]
[358905421,1745539832326,-876.0,0.00033396,2]
[358905423,1745539832336,-796.0,0.00033496,2]
[358905427,1745539832346,-1654.82140191,0.00033693,11]
[358905428,1745539832356,-1654.82140191,0.00034521,12]
[358905431,1745539832366,-544.4633708,0.00034648,2]
[358905434,1745539832375,-478.58,0.00035,2]
[358905436,1745539832385,-1654.82140191,0.00035348,12]
[358905439,1745539832395,-303.57,0.0003602,2]
[358905442,1745539832405,-1654.82140191,0.00036176,13]
[358905445,1745539832415,-876.0,0.00036396,2]
[358905447,1745539832424,-796.0,0.00036496,2]
[358905449,1745539832435,-544.4633708,0.00036967,2]
[358905451,1745539832445,-1654.82140191,0.00037003,13]
[358905453,1745539832455,-200.0,0.00037112,2]
[358905455,1745539832464,-1000.0,0.00037718,2]
[358905457,1745539832474,-1654.82140191,0.00037831,14]
[358905459,1745539832483,-303.57,0.00038284,2]
[358905461,1745539832494,-313.7466906,0.00038356,2]
[358905462,1745539832503,-150.22,0.00038389,2]
[358905464,1745539832513,-2160.49604381,0.0003844,2]
[358905466,1745539832522,-1654.82140191,0.00038659,14]
[358905468,1745539832531,-357.6,0.00039,58]
[358905470,1745539832542,-158.34,0.00039108,2]
[358905472,1745539832557,-605.7,0.00039396,2]
[358905473,1745539832567,-1654.82140191,0.00039486,15]
[358905474,1745539832578,-796.0,0.00039496,2]
[358905475,1745539832588,-8678.13525402,0.00039526,2]
[358905476,1745539832599,-150.22,0.00039535,2]
[358905477,1745539832610,-1311.0,0.00039903,2]
[358905478,1745539832622,-500.0,0.00039906,2]
[358905479,1745539832632,-152.0,0.00039917,3]
[358905480,1745539832642,-392.66,0.00039944,2]
[358905481,1745539832652,-483.44366644,0.00039973,5]
[358905482,1745539832662,-500.0,0.00039973,5]
[358905483,1745539832672,-500.0,0.00039973,5]
[358905484,1745539832681,-500.0,0.00039973,2]
[358905485,1745539832691,-593.51,0.0003998,2]
[358905486,1745539832701,-2438.84999999,0.00039999,2]
[358905487,1745539832712,-952.086,0.00039999,56]
[358905488,1745539832723,-169.15834247,0.00039999,56]
[358905489,1745539832733,-151.0,0.00039999,2]
[358905490,1745539832742,-1860.0,0.0004,120]
[358905491,1745539832752,-200.0,0.0004,61]
[358905492,1745539832762,-6991.66810505,0.0004,90]
[358905493,1745539838005,-468.79,0.00037385,2]
[358905614,1745539840281,-531.21,0.00037385,2]
[358905616,1745539840291,-278.684,0.00039174,2]
[358905618,1745539840300,-151.00000001,0.00039999,2]
[358905620,1745539840311,-3008.33189495,0.0004,90]
[358905621,1745539840321,-157.49,0.0004,30]
[358905623,1745539840331,-199.70010574,0.0004,2]
[358905626,1745539840344,-1800.29989426,0.0004,2]
[358905628,1745539840353,-31026.68065703,0.0004,120]
[358905630,1745539840363,-300.0,0.0004,2]
[358905632,1745539840373,-300.68566967,0.0004014,31]
[358905634,1745539840383,-207.4,0.00040141,15]
[358905636,1745539840393,-215.0738,0.00040141,15]
[358905638,1745539840403,-223.0315306,0.00040141,15]
[358905640,1745539840412,-231.28369723,0.00040141,15]
[358905643,1745539840433,-239.84119403,0.00040141,15]
[358905645,1745539840445,-248.71531821,0.00040141,15]
[358905647,1745539840455,-257.91778498,0.00040141,15]
[358905650,1745539840465,-267.46074303,0.00040141,15]
[358905652,1745539840475,-277.35679052,0.00040141,15]
[358905654,1745539840485,-287.61899177,0.00040141,15]
[358905656,1745539840494,-298.26089446,0.00040141,15]
[358905658,1745539840504,-309.29654756,0.00040141,15]
[358905660,1745539840514,-320.74051982,0.00040141,15]
[358905662,1745539840523,-332.60791905,0.00040141,15]
[358905664,1745539840533,-344.91441206,0.00040141,15]
[358905666,1745539840544,-357.6762453,0.00040141,15]
[358905668,1745539840556,-370.91026638,0.00040141,15]
[358905670,1745539840566,-384.63394623,0.00040141,15]
[358905672,1745539840575,-398.86540225,0.00040141,15]
[358905674,1745539840587,-250.0,0.00040242,2]
[358905676,1745539840597,-912.02902586,0.00040242,2]
[358905678,1745539840610,-1319.83097414,0.00040242,2]
[358905680,1745539840622,-160.21,0.00040248,120]
[358905682,1745539840632,-163.03,0.00040287,2]
[358905684,1745539840645,-300.0,0.00040299,2]
[358905686,1745539840664,-1654.82140191,0.00040314,15]
[358905688,1745539840674,-300.0,0.000404,2]
[358905690,1745539840684,-303.57,0.00040548,2]
[358905693,1745539840694,-500.0,0.00040548,2]
[358905697,1745539840704,-500.0,0.00040548,2]
[358905699,1745539840714,-561.0,0.00040548,2]
[358905702,1745539840724,-500.0,0.00040548,2]
[358905704,1745539840734,-178.39,0.00040558,2]
[358905707,1745539840744,-368.44,0.00040565,2]
[358905710,1745539840754,-737.61,0.00040583,120]
[358905712,1745539840764,-1333.0,0.00040658,120]
[358905714,1745539840774,-150.22,0.00040682,2]
[358905716,1745539840786,-500.0,0.00040822,2]
[358905718,1745539840796,-500.0,0.00040822,2]
[358905720,1745539840805,-561.0,0.00040822,2]
[358905722,1745539840816,-500.0,0.00040822,2]
[358905724,1745539840828,-152.0,0.00040834,4]
[358905726,1745539840838,-275.61,0.000409,31]
[358905728,1745539840849,-275.61,0.000409,31]
[358905730,1745539840858,-275.61,0.000409,31]
[358905733,1745539840868,-275.61,0.000409,31]
[358905735,1745539840878,-275.61,0.000409,31]
[358905737,1745539840887,-275.61,0.000409,31]
[358905739,1745539840897,-275.61,0.000409,31]
[358905741,1745539840907,-275.61,0.000409,31]
[358905743,1745539840917,-275.61,0.000409,31]
[358905745,1745539840926,-275.61,0.000409,31]
[358905747,1745539840936,-275.61,0.000409,31]
[358905749,1745539840946,-275.61,0.000409,31]
[358905751,1745539840955,-2814.8303,0.00040996,2]
[358905753,1745539840965,-200.0,0.00041,64]
[358905755,1745539840974,-200.0,0.00041,64]
[358905757,1745539840984,-500.0,0.00041,120]
[358905759,1745539840994,-200.599999,0.00041,64]
[358905761,1745539841004,-150.0,0.00041,7]
[358905763,1745539841013,-150.0,0.00041,7]
[358905765,1745539841023,-500.0,0.00041,7]
[358905767,1745539841032,-175.0,0.00041,14]
[358905769,1745539841042,-150.0,0.00041,7]
[358905771,1745539841051,-500.0,0.00041055,5]
[358905773,1745539841062,-1505.16325036,0.00041096,10]
[358905775,1745539841073,-500.0,0.00041096,2]
[358905777,1745539841082,-500.0,0.00041096,2]
[358905779,1745539841092,-561.0,0.00041096,2]
[358905781,1745539841102,-500.0,0.00041096,2]
[358905783,1745539841112,-500.0,0.00041096,7]
[358905785,1745539841122,-150.0,0.00041096,7]
[358905787,1745539841132,-150.0,0.00041096,7]
[358905789,1745539841141,-500.0,0.00041096,3]
[358905791,1745539841151,-150.0,0.00041096,7]
[358905793,1745539841161,-150.0,0.00041096,7]
[358905795,1745539841172,-150.0,0.00041096,7]
[358905797,1745539841182,-1654.82140191,0.00041141,16]
[358905799,1745539841193,-150.0,0.00041274,7]
[358905801,1745539841203,-150.0,0.00041274,7]
[358905803,1745539841213,-500.0,0.00041274,7]
[358905806,1745539841224,-150.0,0.00041274,7]
[358905808,1745539841234,-500.0,0.000413,10]
[358905810,1745539841244,-152.17652093,0.000413,10]
[358905812,1745539841253,-504.846715,0.000413,10]
[358905814,1745539841263,-167.943954,0.00041307,2]
[358905816,1745539841272,-561.0,0.0004137,2]
[358905818,1745539841282,-500.0,0.0004137,7]
[358905820,1745539841291,-150.0,0.0004137,7]
[358905821,1745539841300,-150.0,0.0004137,7]
[358905823,1745539841314,-599.47591865,0.0004137,3]
[358905825,1745539841323,-150.0,0.0004137,7]
[358905827,1745539841333,-150.0,0.0004137,7]
[358905829,1745539841343,-150.0,0.0004137,7]
[358905831,1745539841354,-692.8,0.000414,14]
[358905834,1745539841364,-420.0,0.000415,30]
[358905836,1745539841373,-382.0,0.000415,30]
[358905838,1745539841384,-150.0,0.00041548,7]
[358905839,1745539841393,-150.0,0.00041548,7]
[358905841,1745539841403,-500.0,0.00041548,7]
[358905844,1745539841412,-150.0,0.00041548,7]
[358905846,1745539841422,-561.0,0.00041644,2]
[358905848,1745539841431,-500.0,0.00041644,7]
[358905849,1745539841441,-150.0,0.00041644,7]
[358905851,1745539841450,-150.0,0.00041644,7]
[358905854,1745539841460,-150.0,0.00041644,7]
[358905856,1745539841469,-150.0,0.00041644,7]
[358905858,1745539841479,-150.0,0.00041644,7]
[358905860,1745539841489,-152.0,0.0004175,5]
[358905862,1745539841499,-150.0,0.00041822,7]
[358905864,1745539841509,-150.0,0.00041822,7]
[358905866,1745539841518,-500.0,0.00041822,7]
[358905868,1745539841528,-150.0,0.00041822,7]
[358905869,1745539841538,-150.22,0.00041828,2]
[358905871,1745539841552,-159.71799555,0.00041864,10]
[358905873,1745539841564,-502.08038095,0.00041864,10]
[358905875,1745539841573,-561.0,0.00041918,2]
[358905877,1745539841583,-500.0,0.00041918,7]
[358905878,1745539841593,-150.0,0.00041918,7]
[358905879,1745539841603,-150.0,0.00041918,7]
[358905880,1745539841614,-150.0,0.00041918,7]
[358905881,1745539841624,-227.4635009,0.00041918,7]
[358905882,1745539841633,-156.12436919,0.00041918,7]
[358905883,1745539841643,-1654.82140191,0.00041969,16]
[358905884,1745539841653,-2102.36,0.00042,2]
[358905885,1745539841664,-200.0,0.00042,67]
[358905886,1745539841674,-200.0,0.00042,67]
[358905887,1745539841684,-629.0,0.00042,120]
[358905888,1745539841694,-997.3,0.00042,53]
[358905889,1745539841703,-150.0,0.00042096,7]
[358905890,1745539841713,-150.0,0.00042096,7]
[358905891,1745539841723,-500.0,0.00042096,7]
[358905892,1745539841734,-150.0,0.00042096,7]
[358905893,1745539841744,-2102.36,0.000421,2]
[358905894,1745539841755,-660.46,0.000421,2]
[358905896,1745539841764,-997.3,0.0004215,54]
[358905898,1745539841774,-561.0,0.00042192,2]
[358905900,1745539841783,-500.0,0.00042192,7]
[358905902,1745539841793,-150.0,0.00042192,7]
[358905904,1745539841802,-154.56803189,0.00042192,7]
[358905906,1745539841812,-150.0,0.00042192,7]
[358905908,1745539841822,-2102.36,0.000422,2]
[358905910,1745539841832,-500.0,0.00042254,30]
[358905912,1745539841842,-500.0,0.00042273,30]
[358905914,1745539841852,-997.3,0.000423,55]
[358905916,1745539841862,-275.61,0.000423,33]
[358905918,1745539841871,-275.61,0.000423,33]
[358905920,1745539841881,-275.61,0.000423,33]
[358905922,1745539841891,-275.61,0.000423,33]
[358905924,1745539841900,-275.61,0.000423,33]
[358905926,1745539841910,-275.61,0.000423,33]
[358905928,1745539841919,-275.61,0.000423,33]
[358905930,1745539841929,-275.61,0.000423,33]
[358905932,1745539841939,-275.61,0.000423,33]
[358905934,1745539841948,-275.61,0.000423,33]
[358905936,1745539841958,-275.61,0.000423,33]
[358905938,1745539841967,-275.61,0.000423,33]
[358905940,1745539841977,-275.61,0.000423,33]
[358905942,1745539841987,-275.61,0.000423,33]
[358905944,1745539841997,-275.61,0.000423,33]
[358905946,1745539842007,-275.61,0.000423,33]
[358905948,1745539842016,-275.61,0.000423,33]
[358905950,1745539842025,-275.61,0.000423,33]
[358905952,1745539842034,-275.61,0.000423,33]
[358905954,1745539842044,-275.61,0.000423,33]
[358905956,1745539842055,-275.61,0.000423,33]
[358905958,1745539842066,-275.61,0.000423,33]
[358905960,1745539842075,-275.61,0.000423,33]
[358905962,1745539842085,-275.61,0.000423,33]
[358905964,1745539842095,-300.36109567,0.00042308,17]
[358905966,1745539842105,-201.85,0.00042308,17]
[358905969,1745539842115,-250.0,0.0004237,7]
[358905971,1745539842124,-250.0,0.0004237,7]
[358905973,1745539842133,-500.0,0.0004237,7]
[358905975,1745539842143,-250.0,0.0004237,7]
[358905977,1745539842152,-833.5796,0.00042384,7]
[358905979,1745539842162,-203.2607,0.00042403,2]
[358905981,1745539842173,-1000.0,0.00042409,2]
[358905983,1745539842183,-2500.0,0.0004241,2]
[358905985,1745539842193,-1000.0,0.00042433,2]
[358905987,1745539842202,-1273.44414715,0.00042439,15]
[358905989,1745539842212,-997.3,0.0004245,56]
[358905991,1745539842222,-1268.05687737,0.00042461,10]
[358905993,1745539842231,-1000.0,0.00042466,14]
[358905995,1745539842242,-1000.0,0.00042466,14]
[358905997,1745539842251,-561.0,0.00042466,2]
[358905999,1745539842261,-500.0,0.00042466,7]
[358906001,1745539842270,-250.0,0.00042466,7]
[358906003,1745539842281,-197.05472086,0.00042466,7]
[358906005,1745539842291,-574.45597102,0.00042466,10]
[358906007,1745539842301,-404.23200758,0.0004247,3]
[358906009,1745539842313,-670.15259978,0.0004247,3]
[358906011,1745539842322,-1009.9892,0.00042472,10]
[358906013,1745539842332,-503.21907364,0.00042488,10]
[358906015,1745539842342,-1568.91893449,0.0004249,10]
[358906017,1745539842351,-157.85,0.0004249,2]
[358906019,1745539842362,-503.21907364,0.00042491,10]
[358906021,1745539842372,-1268.05687737,0.00042496,10]
[358906023,1745539842382,-375.367,0.00042496,2]
[358906025,1745539842392,-1414.52145587,0.00042497,10]
[358906027,1745539842401,-151.85618485,0.000425,30]
[358906029,1745539842411,-150.0,0.000425,55]
[358906031,1745539842421,-9446.33630828,0.000425,120]
[358906033,1745539842432,-50376.4388275,0.000425,3]
[358906035,1745539842442,-3366.8658,0.00042503,2]
[358906037,1745539842452,-442.4641,0.00042503,2]
[358906039,1745539842462,-16781.1003299,0.0004251,2]
[358906041,1745539842471,-1414.52145587,0.00042511,10]
[358906043,1745539842481,-14799.41534675,0.00042517,10]
[358906045,1745539842491,-14799.41534675,0.00042518,10]
[358906047,1745539842501,-574.45597102,0.0004252,10]
[358906049,1745539842511,-2557.03426823,0.00042531,10]
[358906052,1745539842522,-503.21907364,0.00042533,10]
[358906054,1745539842531,-157.85,0.00042533,2]
[358906055,1745539842541,-157.85,0.00042533,2]
[358906058,1745539842554,-157.85,0.00042533,2]
[358906060,1745539842569,-1268.05687737,0.0004254,10]
[358906064,1745539842580,-1568.91893449,0.00042541,10]
[358906066,1745539842591,-205.45,0.00042542,15]
[358906068,1745539842601,-24036.05960753,0.00042543,2]
[358906075,1745539842657,-591.82742798,0.00042543,2]
[358906195,1745539843952,-2200.0,0.00042543,2]
[358906198,1745539844015,-4691.84999989,0.00042543,2]
[358906199,1745539844028,-3252.39057352,0.00042543,2]
[358906200,1745539845712,-2725.3614,0.000419,2]
[358906201,1745539845723,-170.17238105,0.00042543,2]
[358906269,1745540321867,1000.0,0.00037808,60]
[358906270,1745540418567,1000.0,0.00037808,60]
[358906271,1745540491297,2000.0,0.00037808,60]
[358906274,1745540755674,1243.13975947,6.94e-05,2]
[358906275,1745540768165,756.86024053,8e-05,2]
[358906276,1745540768188,2000.0,8e-05,2]
[358906277,1745540768209,2000.0,8e-05,2]
[358906278,1745540768231,59.46513477,8e-05,2]
[358906286,1745540877724,1940.53486523,0.0001,2]
[358906287,1745540877755,2000.0,0.0001,2]
[358906288,1745540877786,2000.0,0.0001,2]
[358906289,1745540877816,2000.0,0.0001,2]
[358906290,1745540877845,2000.0,0.0001,2]
[358906291,1745540877876,2000.0,0.0001,2]
[358906292,1745540877906,1374.89771355,0.0001,2]
[358906293,1745540895953,625.10228645,0.0001439,2]
[358906294,1745540895974,2000.0,0.0001439,2]
[358906295,1745540895996,2000.0,0.0001439,2]
[358906296,1745540896017,1321.38053616,0.0001439,2]
[358906297,1745540899236,404.79367494,0.000135,2]
[358906298,1745540899320,273.8257889,0.000125,2]
[358906299,1745540899342,23.01649057,0.000125,2]
[358906300,1745540907453,1865.55955939,0.0001,2]
[358906307,1745540917015,111.42395004,0.000149,2]
[358906308,1745540917039,2000.0,0.000149,2]
[358906309,1745540917062,2000.0,0.000149,2]
[358906310,1745540917085,1538.77549296,0.000149,2]
[358906311,1745540919135,461.22450704,0.0001,2]
[358906312,1745540919156,2000.0,0.0001,2]
[358906313,1745540919177,180.31317736,0.0001,2]
[358906314,1745540926245,1363.59458163,0.00010136,2]
[358906315,1745540926479,456.09224101,0.00013368,2]
[358906316,1745540926501,2000.0,0.00013368,2]
[358906317,1745540926524,2000.0,0.00013368,2]
[358906318,1745540926547,2000.0,0.00013368,2]
[358906319,1745540926571,2000.0,0.00013368,2]
[358906320,1745540926593,2000.0,0.00013368,2]
[358906321,1745540926614,2000.0,0.00013368,2]
[358906322,1745540926636,1503.41812898,0.00013368,2]
[358906333,1745541031866,-1200.0,0.00019609,2]
[358906335,1745541031876,-300.0,0.00019609,2]
[358906336,1745541031886,-2740.56662864,0.0001961,2]
[358906337,1745541031895,-3602.39503434,0.0001961,2]
[358906338,1745541031907,-816.01819361,0.0001961,2]
[358906339,1745541031934,-314.49158686,0.0001961,2]
[358906340,1745541031975,-10473.99896404,0.0001961,2]
[358906341,1745541032031,-1048.73586244,0.0001961,2]
[358906342,1745541032043,-276.65889505,0.0001961,2]
[358906343,1745541032055,-578.0878976,0.0001961,2]
[358906344,1745541032087,-1739.3598138,0.0001961,2]
[358906350,1745541037870,-3623.60042211,0.0001961,2]
[358906351,1745541037927,-493.97951791,0.0001961,2]
[358906352,1745541037939,-339.31498725,0.0001961,2]
[358906353,1745541037953,-666.96794774,0.0001961,2]
[358906354,1745541037966,-1070.70831661,0.0001961,2]
[358906355,1745541037981,-701.72,0.0001961,2]
[358906356,1745541037997,-575.44595638,0.0001961,2]
[358906357,1745541038008,-9063.89246516,0.0001961,2]
[358906358,1745541038018,-152.54693735,0.000198,2]
[358906359,1745541038027,-1714.70579064,0.00019889,2]
[358906360,1745541038039,-1590.42,0.00019889,2]
[358906361,1745541038050,-1631.0,0.00019889,2]
[358906362,1745541038061,-1142.92494503,0.00019889,2]
[358906363,1745541038072,-354.60144798,0.00019889,2]
[358906366,1745541038185,-935.97822,0.00019889,2]
[358906368,1745541038198,-325.3726336,0.00019889,2]
[358906523,1745541040098,-3244.7076089,0.00019889,2]
[358906524,1745541040107,-928.5093955,0.000199,2]
[358906525,1745541040116,-807.78416851,0.000199,2]
[358906526,1745541040126,-483.44366644,0.00019973,2]
[358906527,1745541040135,-500.0,0.00019973,2]
[358906528,1745541040145,-500.0,0.00019973,2]
[358906529,1745541040155,-354.06681288,0.0001999,2]
[358906530,1745541040164,-500.0,0.00019999,2]
[358906531,1745541040174,-300.0,0.00019999,2]
[358906532,1745541040183,-500.0,0.00019999,2]
[358906533,1745541040192,-500.0,0.00019999,2]
[358906534,1745541040203,-500.0,0.00019999,2]
[358906535,1745541040213,-500.0,0.00019999,2]
[358906536,1745541040223,-500.0,0.00019999,2]
[358906537,1745541040231,-54084.13856423,0.0002,2]
[358906538,1745541040241,-183.50742965,0.0002,2]
[358906539,1745541040250,-229631.93379352,0.0002,2]
[358906540,1745541040299,-1114.91642325,0.0002,2]
[358906541,1745541040476,-2549.05889236,0.0002,2]
[358906641,1745541271863,250.0,0.00017,2]
[358906642,1745541273582,246.58187102,0.00019,2]
[358906643,1745541273608,53.41812898,0.00019,2]
[358906644,1745541499156,550.57964387,0.00037808,60]
[358906649,1745541919824,274.52188065,0.000378,60]
[358906682,1745542027489,368.49,0.00018689,2]
[358906684,1745542094441,-277.42639471,0.00019773,2]
[358906685,1745542094468,-300.0,0.00019872,2]
[358906686,1745542094495,-548.82592614,0.00019873,2]
[358906687,1745542094524,-500.0,0.00019873,2]
[358906688,1745542094551,-500.6549931,0.00019873,2]
[358906689,1745542094576,-152.41929774,0.00019873,2]
[358906690,1745542094604,-1200.0,0.00019899,2]
[358906691,1745542094630,-392.0,0.00019899,2]
[358906692,1745542094656,-250.0,0.000199,2]
[358906693,1745542094684,-300.0857,0.000199,2]
[358906694,1745542094710,-169.06102874,0.000199,2]
[358906695,1745542094736,-180.04396146,0.000199,2]
[358906696,1745542094762,-22529.48269811,0.000199,2]
[358906711,1745542232087,-300.0,0.00019898,2]
[358906712,1745542232098,-300.0,0.00019899,2]
[358906713,1745542232108,-1200.0,0.00019899,2]
[358906714,1745542232118,-500.0,0.00019899,2]
[358906715,1745542232127,-500.0,0.00019899,2]
[358906716,1745542232137,-500.0,0.00019899,2]
[358906717,1745542232147,-500.0,0.00019899,2]
[358906718,1745542232157,-500.0,0.00019899,2]
[358906719,1745542232167,-500.0,0.00019899,2]
[358906720,1745542232177,-500.0,0.00019899,2]
[358906721,1745542232187,-500.0,0.00019899,2]
[358906722,1745542232197,-500.0,0.00019899,2]
[358906723,1745542232206,-500.0,0.00019899,2]
[358906724,1745542232216,-500.0,0.00019899,2]
[358906725,1745542232225,-500.0,0.00019899,2]
[358906726,1745542232235,-200.26026947,0.00019899,2]
[358906727,1745542232245,-3571.8744,0.000199,2]
[358906728,1745542232254,-2087.5456,0.000199,2]
[358906729,1745542232264,-1146.09973239,0.000199,2]
[358906730,1745542232273,-350.62146344,0.000199,2]
[358906731,1745542232283,-1496.21512802,0.000199,2]
[358906732,1745542232293,-1762.273,0.000199,2]
[358906733,1745542232302,-500.0,0.00019973,2]
[358906734,1745542232312,-500.0,0.00019973,2]
[358906735,1745542232322,-500.0,0.00019973,2]
[358906736,1745542232331,-552.38826885,0.00019973,2]
[358906737,1745542232341,-236.04454192,0.0001999,2]
[358906738,1745542232351,-300.0,0.00019999,2]
[358906739,1745542232360,-500.0,0.00019999,2]
[358906740,1745542232370,-500.0,0.00019999,2]
[358906741,1745542232380,-500.0,0.00019999,2]
[358906742,1745542232390,-500.0,0.00019999,2]
[358906743,1745542232400,-500.0,0.00019999,2]
[358906744,1745542232411,-500.0,0.00019999,2]
[358906745,1745542232421,-500.0,0.00019999,2]
[358906746,1745542232432,-27042.06928211,0.0002,2]
[358906747,1745542232442,-2498.22897115,0.0002,2]
[358906748,1745542232458,-661.05294373,0.0002,2]
[358906749,1745542232488,-101084.17998247,0.0002,2]
[358906750,1745542232500,-4800.33452644,0.0002,2]
[358906751,1745542232521,-2005.01203449,0.0002,2]
[358906752,1745542232536,-1879.44851879,0.0002,2]
[358906754,1745542232559,-1313.43117908,0.0002,2]
[358906755,1745542232591,-1191.94685526,0.0002,2]
[358906756,1745542238112,-1083.42018,0.0002,2]
[358906757,1745542238124,-1774.09999999,0.0002,2]
[358906758,1745542238136,-941.72965,0.0002,2]
[358906759,1745542238219,-10996.23860823,0.0002,2]
[358906760,1745542238231,-5976.20215071,0.0002,2]
[358906761,1745542238246,-801.49741021,0.0002,2]
[358906762,1745542238325,-1504.6499021,0.0002,2]
[358906763,1745542238337,-2355.93323927,0.0002,2]
[358906764,1745542238349,-263.87137854,0.0002,2]
[358906800,1745542240383,-229631.93379352,0.0002,2]
[358906801,1745542240436,-306.00555,0.0002,2]
[358906802,1745542240493,-96810.45838364,0.0002,2]
[358906839,1745542243300,-2222.01049734,0.0002,2]
[358906842,1745542246049,-4672.93677787,0.0002,2]
[358906843,1745542246064,-4993.61513665,0.0002,2]
[358906844,1745542246161,-4144.5976531,0.0002,2]
[358906845,1745542246175,-309.20075418,0.0002,2]
[358906848,1745542246446,-12091.83298418,0.0002,2]
[358906850,1745542246531,-325.79858181,0.0002,2]
[358906852,1745542246551,-64180.78448071,0.0002,2]
[358906853,1745542357529,11613.139,0.00037808,60]
[358906855,1745542471716,3021.073116,0.000378,60]
[358906857,1745542610173,1578.09187102,0.00019111,2]
[358906858,1745542610197,1421.90812898,0.00019111,2]
[358906860,1745542860715,578.09187102,0.00018,2]
[358906861,1745542860742,2000.0,0.00018,2]
[358906862,1745542860767,1603.77628232,0.00018,2]
[358906863,1745543075266,250.0,0.00017,2]
[358907086,1745543164661,146.22371768,0.00017966,2]
[358907087,1745543164686,203.83628232,0.00017966,2]
[358908358,1745543432393,-213.865147,0.00019701,2]
[358908359,1745543432404,-190.41123278,0.000198,2]
[358908360,1745543432414,-1000.0,0.000198,2]
[358908361,1745543432427,-1000.0,0.000198,3]
[358908362,1745543432437,-177.98,0.00019873,2]
[358908363,1745543432447,-1200.0,0.00019899,2]
[358908364,1745543432458,-300.0,0.00019899,2]
[358908365,1745543432467,-500.0,0.000199,2]
[358908366,1745543432477,-181.01343279,0.000199,2]
[358908367,1745543432487,-415.1027,0.000199,2]
[358908368,1745543432496,-1764.59845783,0.000199,2]
[358908369,1745543432505,-280.49717072,0.000199,2]